fUST/lending_fUST_20250730
["ID","MTS","AMOUNT","RATE_DAILY","PERIOD"]
[376045274,1753836652936,-2644.0,0.00021349,2]
[376045275,1753836652947,-1672.52,0.00021349,2]
[376045276,1753836652957,-460.0,0.00021349,2]
[376045277,1753836652967,-460.0,0.00021349,2]
[376045278,1753836652977,-588.4,0.00021349,2]
[376045279,1753836652986,-1517.96,0.00021349,2]
[376045280,1753836652996,-490.39,0.00021349,2]
[376045281,1753836653006,-460.0,0.00021349,2]
[376045282,1753836653015,-460.0,0.00021349,2]
[376045283,1753836653025,-4726.89,0.00021349,2]
[376045284,1753836653035,-517.5,0.00021349,2]
[376045285,1753836653044,-460.0,0.0002135,2]
[376045286,1753836653054,-460.0,0.0002135,2]
[376045287,1753836653063,-223.65,0.0002135,2]
[376045288,1753836653072,-460.0,0.0002135,2]
[376045289,1753836653082,-460.0,0.0002135,2]
[376045290,1753836653092,-460.0,0.0002135,2]
[376045291,1753836653101,-460.0,0.0002135,2]
[376045292,1753836653112,-460.0,0.0002135,2]
[376045293,1753836653122,-460.0,0.0002135,2]
[376045294,1753836653131,-674.01,0.0002135,2]
[376045295,1753836653140,-460.0,0.0002135,2]
[376045296,1753836653150,-460.0,0.0002135,2]
[376045297,1753836653160,-460.0,0.0002135,2]
[376045298,1753836653169,-175.907072,0.0002135,2]
[376045299,1753836653179,-175.907072,0.0002135,2]
[376045300,1753836653189,-5004.17,0.00021351,2]
[376045301,1753836653199,-460.0,0.00021351,2]
[376045302,1753836653208,-882.45,0.00021351,2]
[376045303,1753836653218,-1582.27,0.00021351,2]
[376045304,1753836653227,-460.0,0.00021351,2]
[376045305,1753836653238,-1549.07,0.00021351,2]
[376045306,1753836653248,-460.0,0.00021351,2]
[376045307,1753836653257,-812.49,0.00021352,2]
[376045308,1753836653267,-462.65,0.00021352,2]
[376045309,1753836653276,-836.02,0.00021352,2]
[376045310,1753836653286,-160.0,0.00021354,3]
[376045311,1753836653295,-645.388,0.00021369,2]
[376045312,1753836653305,-178.424,0.00021369,2]
[376045313,1753836653316,-2000.0,0.00021377,2]
[376045314,1753836653325,-2000.0,0.00021377,2]
[376045315,1753836653335,-151.0,0.000214,3]
[376045316,1753836653344,-160.0,0.00021427,4]
[376045317,1753836653354,-7710.15143497,0.00021481,2]
[376045318,1753836653363,-2000.0,0.00021481,2]
[376045319,1753836653373,-160.0,0.00021499,5]
[376045320,1753836653382,-1000.0,0.000215,2]
[376045321,1753836653392,-167.26804136,0.00021507,2]
[376045322,1753836653402,-166.35851874,0.00021507,2]
[376045323,1753836653411,-231.3,0.00021529,4]
[376045324,1753836653421,-600.0,0.00021571,2]
[376045325,1753836653431,-160.0,0.00021572,6]
[376045326,1753836653441,-497.20225544,0.00021611,2]
[376045327,1753836653451,-1000.0,0.00021621,2]
[376045328,1753836653461,-1000.0,0.00021621,2]
[376045329,1753836653471,-1000.0,0.00021621,2]
[376045330,1753836653481,-502.38974247,0.00021621,2]
[376045331,1753836653490,-151.19480198,0.00021621,2]
[376045332,1753836653500,-1000.0,0.00021621,2]
[376045333,1753836653510,-1000.0,0.00021621,2]
[376045335,1753836653519,-1000.0,0.00021621,2]
[376045336,1753836653529,-562.9122084,0.00021621,2]
[376045337,1753836653538,-1047.3744773,0.00021621,2]
[376045338,1753836653548,-1000.89543393,0.00021621,2]
[376045339,1753836653558,-1000.0,0.00021621,2]
[376045340,1753836653568,-1000.0,0.00021621,2]
[376045341,1753836653577,-460.0,0.00021622,2]
[376045342,1753836653588,-1988.53,0.00021622,2]
[376045343,1753836653598,-460.0,0.00021623,2]
[376045344,1753836653608,-468.85,0.00021623,2]
[376045345,1753836653618,-460.0,0.00021623,2]
[376045346,1753836653627,-460.0,0.00021623,2]
[376045347,1753836653637,-155.424881,0.00021623,2]
[376045348,1753836653647,-2520.17,0.00021623,2]
[376045349,1753836653656,-460.0,0.00021623,2]
[376045350,1753836653666,-151.0,0.00021623,2]
[376045351,1753836653675,-460.0,0.00021623,2]
[376045352,1753836653685,-460.0,0.00021623,2]
[376045353,1753836653695,-460.0,0.00021623,2]
[376045354,1753836653705,-886.75,0.00021623,2]
[376045355,1753836653715,-2644.0,0.00021623,2]
[376045356,1753836653725,-1672.52,0.00021623,2]
[376045357,1753836653735,-460.0,0.00021623,2]
[376045358,1753836653744,-588.4,0.00021623,2]
[376045359,1753836653754,-1517.96,0.00021623,2]
[376045360,1753836653763,-490.39,0.00021623,2]
[376045361,1753836653773,-460.0,0.00021623,2]
[376045362,1753836653783,-151.0,0.00021623,2]
[376045363,1753836653792,-460.0,0.00021623,2]
[376045364,1753836653802,-4726.89,0.00021623,2]
[376045365,1753836653812,-517.5,0.00021623,2]
[376045366,1753836653821,-460.0,0.00021624,2]
[376045367,1753836653831,-460.0,0.00021624,2]
[376045368,1753836653841,-460.0,0.00021624,2]
[376045369,1753836653852,-460.0,0.00021624,2]
[376045370,1753836653863,-460.0,0.00021624,2]
[376045371,1753836653872,-460.0,0.00021624,2]
[376045372,1753836653882,-460.0,0.00021624,2]
[376045373,1753836653892,-460.0,0.00021624,2]
[376045374,1753836653902,-674.01,0.00021624,2]
[376045375,1753836653911,-605.83,0.00021624,2]
[376045376,1753836653923,-460.0,0.00021624,2]
[376045377,1753836653935,-460.0,0.00021624,2]
[376045378,1753836653944,-151.0,0.00021625,2]
[376045379,1753836653953,-5004.17,0.00021625,2]
[376045380,1753836653963,-460.0,0.00021625,2]
[376045381,1753836653974,-882.45,0.00021625,2]
[376045382,1753836653985,-1582.27,0.00021625,2]
[376045383,1753836653995,-460.0,0.00021625,2]
[376045384,1753836654006,-1549.07,0.00021625,2]
[376045385,1753836654016,-812.49,0.00021626,2]
[376045386,1753836654026,-462.65,0.00021626,2]
[376045387,1753836654036,-836.02,0.00021626,2]
[376045388,1753836654047,-160.0,0.00021645,7]
[376045389,1753836654057,-2200.0,0.00021648,2]
[376045390,1753836654068,-810.799,0.00021648,2]
[376045391,1753836654078,-151.0,0.00021671,2]
[376045392,1753836654088,-167.26804136,0.00021671,2]
[376045393,1753836654098,-178.4386705,0.00021671,2]
[376045394,1753836654107,-178.4386705,0.00021671,2]
[376045395,1753836654117,-178.4386705,0.00021671,2]
[376045396,1753836654127,-160.1053548,0.00021671,2]
[376045397,1753836654137,-160.1053548,0.00021671,2]
[376045398,1753836654146,-178.4386705,0.00021671,2]
[376045399,1753836654156,-160.1053548,0.00021671,2]
[376045400,1753836654165,-178.4386705,0.00021671,2]
[376045401,1753836654175,-178.4386705,0.00021671,2]
[376045402,1753836654185,-160.1053548,0.00021671,2]
[376045403,1753836654194,-178.4386705,0.00021671,2]
[376045404,1753836654204,-160.1053548,0.00021671,2]
[376045405,1753836654213,-159.4895249,0.00021671,2]
[376045406,1753836654223,-178.4386705,0.00021671,2]
[376045407,1753836654232,-172.3136824,0.00021671,2]
[376045408,1753836654242,-178.4386705,0.00021671,2]
[376045409,1753836654251,-160.0,0.00021717,8]
[376045410,1753836654261,-2500.0,0.00021721,2]
[376045411,1753836654270,-2000.0,0.00021737,2]
[376045412,1753836654279,-151.0,0.00021739,2]
[376045413,1753836654289,-182.0,0.00021752,2]
[376045414,1753836654298,-231.3,0.00021764,4]
[376045415,1753836654308,-166.35851874,0.00021781,2]
[376045416,1753836654317,-160.0,0.0002179,9]
[376045417,1753836654327,-168.0,0.0002179,2]
[376045418,1753836654338,-177.106019,0.00021795,2]
[376045419,1753836654348,-600.0,0.00021796,2]
[376045420,1753836654359,-151.0,0.000218,3]
[376045421,1753836654371,-182.0,0.00021806,2]
[376045422,1753836654381,-167.26804136,0.00021836,2]
[376045423,1753836654391,-560.0,0.00021844,2]
[376045424,1753836654401,-160.0,0.00021863,10]
[376045425,1753836654412,-460.0,0.00021896,2]
[376045426,1753836654422,-1988.53,0.00021896,2]
[376045427,1753836654434,-460.0,0.00021897,2]
[376045428,1753836654444,-468.85,0.00021897,2]
[376045429,1753836654453,-460.0,0.00021897,2]
[376045430,1753836654463,-151.0,0.00021897,2]
[376045431,1753836654473,-460.0,0.00021897,2]
[376045432,1753836654483,-2520.17,0.00021897,2]
[376045433,1753836654492,-460.0,0.00021897,2]
[376045434,1753836654502,-460.0,0.00021897,2]
[376045435,1753836654511,-460.0,0.00021897,2]
[376045436,1753836654522,-460.0,0.00021897,2]
[376045437,1753836654532,-886.75,0.00021897,2]
[376045438,1753836654542,-2644.0,0.00021897,2]
[376045439,1753836654552,-1672.52,0.00021897,2]
[376045440,1753836654664,-460.0,0.00021897,2]
[376045441,1753836654674,-588.4,0.00021897,2]
[376045442,1753836654684,-1517.96,0.00021897,2]
[376045443,1753836654695,-490.39,0.00021897,2]
[376045444,1753836654704,-460.0,0.00021897,2]
[376045445,1753836654714,-460.0,0.00021897,2]
[376045446,1753836654723,-4726.89,0.00021897,2]
[376045447,1753836654732,-517.5,0.00021897,2]
[376045448,1753836654742,-460.0,0.00021898,2]
[376045449,1753836654751,-460.0,0.00021898,2]
[376045450,1753836654760,-460.0,0.00021898,2]
[376045451,1753836654770,-460.0,0.00021898,2]
[376045452,1753836654779,-460.0,0.00021898,2]
[376045453,1753836654788,-460.0,0.00021898,2]
[376045454,1753836654797,-460.0,0.00021898,2]
[376045455,1753836654806,-460.0,0.00021898,2]
[376045456,1753836654816,-674.01,0.00021898,2]
[376045457,1753836654826,-227.66362334,0.00021898,2]
[376045458,1753836654835,-460.0,0.00021898,2]
[376045459,1753836654845,-151.0,0.00021899,2]
[376045460,1753836654857,-151.0,0.00021899,2]
[376045461,1753836654868,-151.0,0.00021899,2]
[376045462,1753836654878,-5004.17,0.00021899,2]
[376045463,1753836654887,-460.0,0.00021899,2]
[376045464,1753836654898,-882.45,0.00021899,2]
[376045465,1753836654908,-579.430433,0.00021899,2]
[376045466,1753836654918,-579.430433,0.00021899,2]
[376045467,1753836654928,-1582.27,0.00021899,2]
[376045468,1753836654939,-460.0,0.00021899,2]
[376045469,1753836654949,-1549.07,0.00021899,2]
[376045470,1753836654958,-812.49,0.000219,2]
[376045471,1753836654967,-462.65,0.000219,2]
[376045472,1753836654976,-836.02,0.000219,2]
[376045473,1753836654986,-151.0,0.000219,2]
[376045474,1753836654995,-151.0,0.00021918,2]
[376045475,1753836655005,-151.0,0.00021918,2]
[376045476,1753836655014,-150.43678525,0.00021918,2]
[376045477,1753836655023,-200.0,0.00021918,2]
[376045478,1753836655033,-1509.59643762,0.00021925,2]
[376045479,1753836655042,-2500.0,0.00021925,2]
[376045480,1753836655051,-160.0,0.00021935,11]
[376045481,1753836655061,-460.0,0.00021999,2]
[376045482,1753836655071,-460.0,0.00021999,2]
[376045483,1753836655080,-460.0,0.00021999,2]
[376045484,1753836655089,-1459.59,0.00021999,2]
[376045485,1753836655099,-231.3,0.00021999,4]
[376045486,1753836655108,-831.35,0.00021999,2]
[376045487,1753836655118,-460.0,0.00021999,2]
[376045488,1753836655127,-695.59,0.00021999,2]
[376045489,1753836655136,-178.4386705,0.00022,2]
[376045490,1753836655145,-178.4386705,0.00022,2]
[376045491,1753836655154,-178.4386705,0.00022,2]
[376045492,1753836655163,-178.4386705,0.00022,2]
[376045493,1753836655173,-167.26804136,0.00022,2]
[376045494,1753836655182,-178.4386705,0.00022,2]
[376045495,1753836655192,-1000.0,0.00022,2]
[376045496,1753836655201,-151.0,0.00022,7]
[376045497,1753836655211,-56904.74,0.00022,2]
[376045498,1753836655220,-4599.21,0.00022,2]
[376045499,1753836655229,-175.907072,0.00022,7]
[376045500,1753836655239,-175.907072,0.00022,7]
[376045501,1753836655248,-151.0,0.00022,7]
[376045502,1753836655257,-163.0,0.00022,2]
[376045503,1753836655267,-160.0,0.00022008,12]
[376045504,1753836655277,-600.0,0.00022021,2]
[376045505,1753836655286,-2595.20899026,0.00022029,2]
[376045506,1753836655296,-182.0,0.00022053,2]
[376045507,1753836655305,-168.0,0.00022056,2]
[376045508,1753836655315,-160.0,0.00022081,13]
[376045509,1753836655324,-166.35851874,0.00022082,2]
[376045510,1753836655334,-151.0,0.000221,7]
[376045511,1753836655343,-160.0,0.00022154,14]
[376045512,1753836655352,-167.26804136,0.00022164,2]
[376045513,1753836655362,-578.1881624,0.00022164,2]
[376045514,1753836655372,-178.4386705,0.00022164,2]
[376045515,1753836655381,-1500.0,0.00022168,2]
[376045516,1753836655392,-1500.0,0.00022168,2]
[376045517,1753836655402,-500.0,0.00022168,2]
[376045518,1753836655411,-1000.0,0.00022168,2]
[376045519,1753836655421,-1500.0,0.00022168,2]
[376045520,1753836655430,-1500.0,0.00022168,2]
[376045521,1753836655440,-501.11774206,0.00022168,2]
[376045522,1753836655449,-223.80422117,0.00022168,2]
[376045523,1753836655459,-460.0,0.0002217,2]
[376045524,1753836655468,-1988.53,0.0002217,2]
[376045525,1753836655478,-151.0,0.00022171,7]
[376045526,1753836655488,-151.0,0.00022171,7]
[376045527,1753836655497,-468.85,0.00022171,2]
[376045528,1753836655507,-230.12350431,0.00022171,2]
[376045529,1753836655516,-2520.17,0.00022171,2]
[376045530,1753836655525,-460.0,0.00022171,2]
[376045531,1753836655535,-460.0,0.00022171,2]
[376045532,1753836655545,-460.0,0.00022171,2]
[376045533,1753836655555,-460.0,0.00022171,2]
[376045534,1753836655564,-886.75,0.00022171,2]
[376045535,1753836655573,-2644.0,0.00022171,2]
[376045536,1753836655583,-1672.52,0.00022171,2]
[376045537,1753836655592,-460.0,0.00022171,2]
[376045538,1753836655601,-588.4,0.00022171,2]
[376045539,1753836655610,-1517.96,0.00022171,2]
[376045540,1753836655621,-490.39,0.00022171,2]
[376045541,1753836655630,-460.0,0.00022171,2]
[376045542,1753836655640,-460.0,0.00022171,2]
[376045543,1753836655650,-4726.89,0.00022171,2]
[376045544,1753836655660,-517.5,0.00022171,2]
[376045545,1753836655669,-460.0,0.00022172,2]
[376045546,1753836655679,-460.0,0.00022172,2]
[376045547,1753836655690,-460.0,0.00022172,2]
[376045548,1753836655699,-460.0,0.00022172,2]
[376045549,1753836655710,-460.0,0.00022172,2]
[376045550,1753836655722,-460.0,0.00022172,2]
[376045551,1753836655731,-460.0,0.00022172,2]
[376045552,1753836655741,-460.0,0.00022172,2]
[376045553,1753836655750,-674.01,0.00022172,2]
[376045554,1753836655759,-460.0,0.00022172,2]
[376045555,1753836655769,-5004.17,0.00022173,2]
[376045556,1753836655780,-460.0,0.00022173,2]
[376045557,1753836655795,-882.45,0.00022173,2]
[376045558,1753836655806,-1582.27,0.00022173,2]
[376045559,1753836655817,-460.0,0.00022173,2]
[376045560,1753836655827,-1549.07,0.00022173,2]
[376045561,1753836655836,-812.49,0.00022174,2]
[376045562,1753836655846,-462.65,0.00022174,2]
[376045563,1753836655859,-836.02,0.00022174,2]
[376045564,1753836655868,-163.0,0.00022192,7]
[376045565,1753836655878,-160.0,0.00022226,15]
[376045566,1753836655887,-231.3,0.00022235,5]
[376045567,1753836655897,-976.23361482,0.00022245,2]
[376045568,1753836655906,-1459.59,0.00022273,2]
[376045569,1753836655916,-831.35,0.00022273,2]
[376045570,1753836655927,-460.0,0.00022273,2]
[376045571,1753836655936,-695.59,0.00022273,2]
[376045572,1753836655946,-151.0,0.00022278,7]
[376045573,1753836655955,-151.0,0.00022278,7]
[376045574,1753836655965,-151.0,0.00022278,7]
[376045575,1753836655974,-151.0,0.00022278,7]
[376045576,1753836655984,-30000.0,0.00022278,2]
[376045577,1753836655995,-160.0,0.00022299,16]
[376045578,1753836656006,-167.26804136,0.00022329,2]
[376045579,1753836656015,-166.35851874,0.00022356,2]
[376045580,1753836656025,-3595.97704725,0.0002237,2]
[376045581,1753836656034,-497.20225544,0.0002237,2]
[376045582,1753836656044,-7914.33915885,0.0002237,2]
[376045583,1753836656053,-160.0,0.00022372,17]
[376045584,1753836656065,-182.0,0.00022376,2]
[376045585,1753836656074,-182.0,0.00022386,2]
[376045586,1753836656084,-660.0,0.00022392,2]
[376045587,1753836656094,-996.399999,0.000224,2]
[376045588,1753836656103,-1167.08,0.000224,2]
[376045589,1753836656112,-587.0,0.00022438,2]
[376045590,1753836656122,-460.0,0.00022444,2]
[376045591,1753836656131,-1988.53,0.00022444,2]
[376045592,1753836656140,-160.0,0.00022444,18]
[376045593,1753836656150,-468.85,0.00022445,2]
[376045594,1753836656159,-2520.17,0.00022445,2]
[376045595,1753836656168,-460.0,0.00022445,2]
[376045596,1753836656180,-460.0,0.00022445,2]
[376045597,1753836656191,-460.0,0.00022445,2]
[376045598,1753836656202,-886.75,0.00022445,2]
[376045599,1753836656212,-2644.0,0.00022445,2]
[376045600,1753836656222,-1672.52,0.00022445,2]
[376045601,1753836656232,-460.0,0.00022445,2]
[376045602,1753836656241,-588.4,0.00022445,2]
[376045603,1753836656251,-1517.96,0.00022445,2]
[376045604,1753836656261,-490.39,0.00022445,2]
[376045605,1753836656271,-460.0,0.00022445,2]
[376045606,1753836656280,-460.0,0.00022445,2]
[376045607,1753836656290,-4726.89,0.00022445,2]
[376045608,1753836656299,-422.22889591,0.00022446,2]
[376045609,1753836656309,-460.0,0.00022446,2]
[376045610,1753836656318,-460.0,0.00022446,2]
[376045611,1753836656328,-460.0,0.00022446,2]
[376045612,1753836656337,-460.0,0.00022446,2]
[376045613,1753836656347,-460.0,0.00022446,2]
[376045614,1753836656356,-599.76,0.00022446,2]
[376045615,1753836656365,-460.0,0.00022446,2]
[376045616,1753836656375,-674.01,0.00022446,2]
[376045617,1753836656384,-225.77,0.00022446,2]
[376045618,1753836656394,-5004.17,0.00022447,2]
[376045619,1753836656404,-460.0,0.00022447,2]
[376045620,1753836656414,-882.45,0.00022447,2]
[376045621,1753836656423,-1582.27,0.00022447,2]
[376045622,1753836656433,-460.0,0.00022447,2]
[376045623,1753836656443,-1549.07,0.00022447,2]
[376045624,1753836656452,-151.0,0.00022447,7]
[376045625,1753836656463,-812.49,0.00022448,2]
[376045626,1753836656472,-462.65,0.00022448,2]
[376045627,1753836656482,-836.02,0.00022448,2]
[376045628,1753836656496,-174.445871,0.00022448,7]
[376045629,1753836656517,-500.0,0.00022452,2]
[376045630,1753836656526,-199.0,0.00022454,2]
[376045631,1753836656536,-198.0,0.00022454,2]
[376045632,1753836656545,-837.0,0.00022454,2]
[376045633,1753836656556,-151.0,0.00022454,2]
[376045634,1753836656565,-151.0,0.00022454,2]
[376045635,1753836656574,-151.0,0.00022454,2]
[376045636,1753836656584,-151.0,0.00022454,2]
[376045637,1753836656593,-260.48410387,0.00022454,2]
[376045638,1753836656602,-153.27205823,0.00022454,2]
[376045639,1753836656611,-171.11865944,0.00022454,2]
[376045640,1753836656621,-151.0,0.00022454,2]
[376045641,1753836656631,-151.0,0.00022454,2]
[376045642,1753836656640,-151.0,0.00022454,2]
[376045643,1753836656649,-151.0,0.00022454,2]
[376045644,1753836656659,-151.0,0.00022469,7]
[376045645,1753836656668,-151.0,0.00022469,7]
[376045646,1753836656678,-151.0,0.00022469,7]
[376045647,1753836656687,-200.0,0.00022469,2]
[376045648,1753836656699,-152.894949,0.00022469,7]
[376045649,1753836656713,-151.0,0.00022469,7]
[376045650,1753836656723,-160.31443999,0.00022469,2]
[376045651,1753836656733,-151.0,0.00022469,7]
[376045652,1753836656744,-155.094317,0.00022469,7]
[376045653,1753836656753,-151.0,0.00022469,7]
[376045654,1753836656762,-151.0,0.00022469,7]
[376045655,1753836656772,-152.9162,0.00022469,7]
[376045656,1753836656781,-152.9162,0.00022469,7]
[376045657,1753836656791,-579.430433,0.00022469,7]
[376045658,1753836656802,-579.430433,0.00022469,7]
[376045659,1753836656813,-151.0,0.00022469,7]
[376045660,1753836656822,-175.907072,0.00022469,7]
[376045661,1753836656831,-175.907072,0.00022469,7]
[376045662,1753836656840,-375947.95833436,0.0002247,2]
[376045663,1753836657126,-45570.98897207,0.0002247,2]
[376045664,1753836657138,-791.16629182,0.0002247,2]
[376045665,1753836657191,-517.5,0.00022445,2]
[376045666,1753836657203,-9629.7225419,0.0002247,2]
[376045667,1753836657300,-120763.0715266,0.0002247,2]
[376045668,1753836657358,398.664059,0.00013699,2]
[376045669,1753836657403,-398.664059,0.00020187,2]
[376045670,1753836657413,-1292.10860865,0.0002247,2]
[376045671,1753836657424,-301.40038281,0.0002247,2]
[376045672,1753836657440,-6183.30200422,0.0002247,2]
[376045673,1753836657452,-4230.36048121,0.0002247,2]
[376045674,1753836657465,-1321.87702452,0.0002247,2]
[376045675,1753836657477,-670.79689604,0.0002247,2]
[376045676,1753836657489,-429.35548269,0.0002247,2]
[376045678,1753836678478,153.429622,0.00023,30]
[376045679,1753836791448,7686.87872373,0.00018784,2]
[376045680,1753836967795,300.7797852,0.000187,2]
[376045681,1753837160539,5000.0,0.0001879,2]
[376045682,1753837220171,1000.0,0.00017883,2]
[376045683,1753837226014,150.0,0.00020209,30]
[376045684,1753837226444,150.0,0.00021171,30]
[376045685,1753837227288,150.0,0.00022133,30]
[376045686,1753837279707,153.429622,0.00023,30]
[376045687,1753837306889,150.0,0.00020532,30]
[376045688,1753837307329,150.0,0.00021509,30]
[376045689,1753837307776,150.0,0.00022487,30]
[376045691,1753837385581,150.0,0.00020497,30]
[376045692,1753837385982,150.0,0.00021474,30]
[376045693,1753837386499,150.0,0.0002245,30]
[376045695,1753837466026,150.0,0.00020461,30]
[376045696,1753837466453,150.0,0.00021435,30]
[376045697,1753837466899,150.0,0.00022409,30]
[376045698,1753837557574,5000.0,0.000188,6]
[376045699,1753837565872,638.7709251,0.00017883,2]
[376045700,1753837587547,2607.80179425,0.0001879,2]
[376045701,1753837620692,150.0,0.00020494,30]
[376045702,1753837621080,150.0,0.0002147,30]
[376045703,1753837621995,150.0,0.00022446,30]
[376045708,1753837701914,150.0,0.00020411,30]
[376045709,1753837702802,150.0,0.00021383,30]
[376045710,1753837703491,150.0,0.00022355,30]
[376045712,1753837771567,371.328642,0.00013699,2]
[376045714,1753837784340,150.0,0.00020451,30]
[376045715,1753837784762,150.0,0.00021425,30]
[376045716,1753837785321,150.0,0.00022399,30]
[376045769,1753837833736,-1200.0,0.00018879,2]
[376045770,1753837833746,-460.0,0.0001888,2]
[376045771,1753837833756,-460.0,0.0001888,2]
[376045772,1753837833766,-460.0,0.0001888,2]
[376045773,1753837833776,-469.64618594,0.0001888,2]
[376045774,1753837833786,-460.0,0.0001888,2]
[376045775,1753837833796,-424.19779052,0.0001888,2]
[376045776,1753837833806,-460.0,0.0001888,2]
[376045777,1753837833816,-466.90820524,0.0001888,2]
[376045778,1753837833825,-460.0,0.0001888,2]
[376045779,1753837833835,-560.7721542,0.0001888,2]
[376045780,1753837833845,-460.0,0.0001888,2]
[376045781,1753837833855,-460.0,0.0001888,2]
[376045782,1753837833865,-460.0,0.0001888,2]
[376045783,1753837833875,-161.8942032,0.0001888,2]
[376045784,1753837833885,-460.0,0.0001888,2]
[376045785,1753837833895,-1967.57,0.0001888,2]
[376045786,1753837833905,-460.0,0.0001888,2]
[376045787,1753837833915,-588.58587348,0.0001888,2]
[376045788,1753837833926,-460.0,0.0001888,2]
[376045789,1753837833937,-460.0,0.0001888,2]
[376045790,1753837833947,-460.0,0.0001888,2]
[376045791,1753837833957,-460.0,0.0001888,2]
[376045792,1753837833966,-460.0,0.0001888,2]
[376045793,1753837833976,-396.39423654,0.0001888,2]
[376045794,1753837833985,-554.8631452,0.0001888,2]
[376045795,1753837833996,-1629.69,0.0001888,2]
[376045796,1753837834005,-460.0,0.0001888,2]
[376045797,1753837834015,-460.0,0.0001888,2]
[376045798,1753837834024,-460.0,0.0001888,2]
[376045799,1753837834034,-460.0,0.0001888,2]
[376045800,1753837834044,-460.0,0.0001888,2]
[376045801,1753837834054,-877.8,0.0001888,2]
[376045802,1753837834064,-460.0,0.0001888,2]
[376045803,1753837834074,-331.78272404,0.0001888,2]
[376045804,1753837834084,-460.0,0.0001888,2]
[376045805,1753837834093,-460.0,0.0001888,2]
[376045806,1753837834103,-460.0,0.0001888,2]
[376045807,1753837834113,-1248.98,0.0001888,2]
[376045808,1753837834122,-460.0,0.0001888,2]
[376045809,1753837834132,-460.0,0.0001888,2]
[376045810,1753837834142,-460.0,0.0001888,2]
[376045811,1753837834156,-460.0,0.0001888,2]
[376045812,1753837834166,-460.0,0.0001888,2]
[376045813,1753837834176,-460.0,0.00018881,2]
[376045814,1753837834186,-494.30199203,0.00018881,2]
[376045815,1753837834195,-460.0,0.00018881,2]
[376045816,1753837834206,-460.0,0.00018881,2]
[376045817,1753837834219,-314.9923924,0.00018881,2]
[376045818,1753837834229,-460.0,0.00018881,2]
[376045819,1753837834239,-465.17679717,0.00018881,2]
[376045820,1753837834249,-460.0,0.00018881,2]
[376045821,1753837834263,-460.0,0.00018881,2]
[376045822,1753837834282,-459.84158368,0.00018881,2]
[376045823,1753837834299,-460.0,0.00018881,2]
[376045824,1753837834309,-460.0,0.00018881,2]
[376045825,1753837834319,-460.0,0.00018881,2]
[376045826,1753837834328,-460.0,0.00018881,2]
[376045827,1753837834337,-460.0,0.00018881,2]
[376045828,1753837834347,-460.0,0.00018881,2]
[376045829,1753837834356,-460.0,0.00018881,2]
[376045830,1753837834365,-460.0,0.00018881,2]
[376045831,1753837834375,-460.0,0.00018881,2]
[376045832,1753837834384,-460.0,0.00018881,2]
[376045833,1753837834394,-460.0,0.00018881,2]
[376045834,1753837834407,-460.0,0.00018881,2]
[376045835,1753837834416,-217.80732844,0.00018881,2]